bitfinex-derivatives/quotes_BNBF0:USTF0_20250309
["timestamp","ask_amount","ask_price","bid_price","bid_amount"]
[1741486706250,0.31172968,590.27,588.77,2.61569122]
[1741486707054,0.31173403,590.26,588.77,2.61569122]
[1741486707354,0.31173403,590.25,588.77,2.61569122]
[1741486707551,0.29524177,590.28,588.77,2.61569122]
[1741486707552,0.31173403,590.27,588.77,2.61569122]
[1741486708755,0.31173403,590.26,588.77,2.61569122]
[1741486708955,0.29524302,590.26,588.77,2.61569122]
[1741486709150,0.31173403,590.25,588.77,2.61569122]
[1741486710757,0.29524302,590.26,588.77,2.61569122]
[1741486710958,0.31173588,590.25,588.77,2.61569122]
[1741486712458,0.29524302,590.26,588.77,2.61569122]
[1741486712759,0.3117362,590.25,588.77,2.61569122]
[1741486713256,0.29524302,590.26,588.77,2.61569122]
[1741486713460,0.31172067,590.25,588.77,2.61569122]
[1741486714465,0.29524302,590.26,588.77,2.61569122]
[1741486714763,0.31171911,590.25,588.77,2.61569122]
[1741486715063,0.29523426,590.25,588.77,2.61569122]
[1741486715264,0.31171911,590.24,588.77,2.61569122]
[1741486716563,0.31171911,590.24,588.77,3.31969122]
[1741486717360,0.29523426,590.25,588.77,3.31969122]
[1741486717761,0.31169746,590.24,588.77,3.31969122]
[1741486718066,0.29523426,590.25,588.77,3.31969122]
[1741486718259,0.31169401,590.24,588.77,3.31969122]
[1741486718966,0.29523426,590.25,588.77,3.31969122]
[1741486719266,0.31169075,590.24,588.77,3.31969122]
[1741486722763,0.29523426,590.25,588.77,3.31969122]
[1741486722969,0.3116781,590.24,588.77,3.31969122]
[1741486723870,0.29521422,590.23,588.77,3.31969122]
[1741486724265,0.3116781,590.22,588.77,3.31969122]
[1741486727671,0.29521422,590.23,588.77,3.31969122]
[1741486727869,0.31162616,590.22,588.77,3.31969122]
[1741486728067,0.29521422,590.23,588.77,3.31969122]
[1741486729168,0.31162228,590.22,588.8,1.2675749]
[1741486729772,0.31162228,590.34,588.8,1.2675749]
[1741486729968,0.29518542,590.21,588.8,1.2675749]
[1741486730174,0.33878207,590.35,588.8,1.2675749]
[1741486730374,0.31162228,590.34,588.82,0.33966237]
[1741486730874,0.2951704,590.33,588.82,0.33966237]
[1741486731173,0.31162228,590.32,588.82,0.33966237]
[1741486732571,0.31162228,590.32,588.83,1.281]
[1741486732770,0.31162228,590.32,588.85,0.33964507]
[1741486732977,0.31163026,590.31,588.85,0.33964507]
[1741486733275,0.31163026,590.3,588.85,0.33964507]
[1741486733472,0.31163026,590.32,588.86,0.631]
[1741486733775,0.31163026,590.31,588.88,0.33962776]
[1741486733976,0.31163026,590.32,588.88,0.33962776]
[1741486734270,0.31163026,590.31,588.88,0.33962776]
[1741486734471,0.31163026,590.3,588.88,0.33962776]
[1741486734675,0.2951704,590.33,588.88,0.33962776]
[1741486734875,0.31167461,590.29,588.88,0.33962776]
[1741486735074,0.31167461,590.28,588.88,0.33962776]
[1741486735271,0.31167461,590.32,588.88,0.33962776]
[1741486735471,0.2951704,590.33,588.88,0.33962776]
[1741486735771,0.31167296,590.32,588.88,0.33962776]
[1741486735974,0.31167296,590.31,588.88,0.33962776]
[1741486736873,0.29518542,590.32,588.88,0.33962776]
[1741486737076,0.31164005,590.31,588.88,0.33962776]
[1741486739483,0.31164005,590.31,588.89,0.575]
[1741486739781,0.31164005,590.31,588.91,0.33961046]
[1741486740284,0.29518542,590.32,588.91,0.33961046]
[1741486740484,0.31165399,590.31,588.91,0.33961046]
[1741486741789,0.31165399,590.34,588.91,0.33961046]
[1741486741983,0.29517916,590.3,588.91,0.33961046]
[1741486742184,0.31165399,590.29,588.91,0.33961046]
[1741486742789,0.31165399,590.29,588.91,1.08861046]
[1741486744791,0.31165399,590.28,588.91,1.08861046]
[1741486744990,0.31165399,590.34,588.91,1.08861046]
[1741486745195,0.31165399,590.33,588.91,1.08861046]
[1741486745392,0.31166327,590.32,588.91,1.08861046]
[1741486745588,0.31166327,590.34,588.91,1.08861046]
[1741486745792,0.31166327,590.33,588.91,1.08861046]
[1741486746094,0.29516915,590.31,588.91,1.08861046]
[1741486746293,0.31166327,590.3,588.91,1.08861046]
[1741486746996,0.29516915,590.31,588.91,1.08861046]
[1741486747195,0.31166672,590.3,588.91,1.08861046]
[1741486747893,0.31166672,590.34,588.91,1.08861046]
[1741486748489,0.33878207,590.35,588.91,1.08861046]
[1741486748693,0.31170121,590.34,588.91,1.08861046]
[1741486748889,0.29518918,590.33,588.91,1.08861046]
[1741486749093,0.31170121,590.32,588.91,1.08861046]
[1741486750995,0.31170121,590.31,588.91,1.08861046]
[1741486751196,0.31170121,590.33,588.91,1.08861046]
[1741486751391,0.31170121,590.32,588.91,1.08861046]
[1741486751592,0.31170121,590.31,588.91,1.08861046]
[1741486751896,0.31170121,590.3,588.91,1.08861046]
[1741486752197,0.31170121,590.29,588.91,1.08861046]
[1741486752497,0.31170121,590.28,588.91,1.08861046]
[1741486752994,0.31170121,590.27,588.91,1.08861046]
[1741486753199,0.31170121,590.31,588.91,1.08861046]
[1741486753392,0.31170121,590.3,588.91,1.08861046]
[1741486753596,0.31174177,590.29,588.91,1.08861046]
[1741486753796,0.31174177,590.33,588.91,1.08861046]
[1741486754597,1.2617338,590.32,588.91,1.08861046]
[1741486754798,0.31174393,590.31,588.91,1.08861046]
[1741486757898,0.29521798,590.3,588.91,1.08861046]
[1741486758102,0.31174393,590.29,588.91,1.08861046]
[1741486759900,0.31174393,590.29,588.91,2.20661046]
[1741486760998,0.65056044,590.29,588.91,2.20661046]
[1741486761202,0.65056618,590.28,588.91,2.20661046]
[1741486761399,0.65057192,590.27,588.91,2.20661046]
[1741486761606,0.65057766,590.26,588.91,2.20661046]
[1741486761808,0.31174393,590.25,588.91,2.20661046]
[1741486762005,0.31174393,590.24,588.91,2.20661046]
[1741486762305,1.57347773,590.23,588.91,2.20661046]
[1741486762506,0.31174393,590.22,588.91,2.20661046]
[1741486762708,0.31174393,590.21,588.91,2.20661046]
[1741486762903,0.31174393,590.2,588.91,2.20661046]
[1741486763107,0.31174393,590.19,588.91,2.20661046]
[1741486763309,0.31174393,590.21,588.91,2.20661046]
[1741486763510,0.31174393,590.2,588.91,2.20661046]
[1741486763710,0.31174393,590.21,588.91,2.20661046]
[1741486764009,0.3117968,590.2,588.91,2.20661046]
[1741486764210,0.3117968,590.21,588.91,2.20661046]
[1741486764411,0.3117968,590.2,588.91,2.20661046]
[1741486764608,0.3117968,590.21,588.91,2.20661046]
[1741486765409,1.2617338,590.15,588.91,2.20661046]
[1741486765711,0.3117968,590.14,588.91,2.20661046]
[1741486766008,0.3117924,590.13,588.91,2.99461046]
[1741486768911,0.3117924,590.12,588.91,2.99461046]
[1741486769113,0.3117924,590.11,588.91,2.99461046]
[1741486769311,0.3117924,590.24,588.91,2.99461046]
[1741486769512,0.3117924,590.23,588.91,2.99461046]
[1741486769713,0.3117924,590.25,588.91,2.99461046]
[1741486770013,0.29523301,590.22,588.91,2.99461046]
[1741486770312,0.3117924,590.21,588.91,2.99461046]
[1741486771512,0.29523301,590.22,588.91,2.99461046]
[1741486771713,0.31176708,590.21,588.91,2.99461046]
[1741486771911,0.31176708,590.25,588.91,2.99461046]
[1741486772106,0.31176708,590.24,588.91,2.99461046]
[1741486772311,0.31176708,590.25,588.91,2.99461046]
[1741486772511,0.31176708,590.24,588.91,2.99461046]
[1741486772813,0.31176708,590.23,588.91,2.99461046]
[1741486774607,0.31176708,590.23,588.91,3.92261046]
[1741486775110,0.295228,590.24,588.91,3.92261046]
[1741486775407,0.31175935,590.23,588.91,3.92261046]
[1741486776713,0.31175935,590.23,588.91,4.54461046]
[1741486777913,0.31175935,590.25,588.91,4.54461046]
[1741486778111,0.31175935,590.24,588.91,4.54461046]
[1741486778417,0.31175935,590.23,588.91,4.54461046]
[1741486778618,0.31175935,590.22,588.91,4.54461046]
[1741486778818,0.31175935,590.21,588.91,4.54461046]
[1741486779018,0.31175935,590.2,588.91,4.54461046]
[1741486779220,0.31175935,590.21,588.91,4.54461046]
[1741486779518,0.31175935,590.2,588.91,4.54461046]
[1741486779715,0.295228,590.22,588.91,4.54461046]
[1741486779716,0.31175935,590.19,588.91,4.54461046]
[1741486779912,0.31175935,590.18,588.91,4.54461046]
[1741486780116,0.31175935,590.17,588.91,4.54461046]
[1741486780314,0.295228,590.22,588.91,4.54461046]
[1741486780514,0.31172959,590.21,588.91,4.54461046]
[1741486780718,1.2617338,590.25,588.91,4.54461046]
[1741486780915,0.295228,590.21,588.91,4.54461046]
[1741486782120,0.31165537,590.2,588.91,4.54461046]
[1741486782318,0.295228,590.21,588.91,4.54461046]
[1741486783714,1.2617338,590.71,588.91,4.54461046]
[1741486783919,0.29511158,590.2,588.91,4.54461046]
[1741486784212,0.33858134,590.7,588.91,4.54461046]
[1741486784418,0.31158867,590.69,588.91,4.54461046]
[1741486784617,0.3385928,590.68,588.91,4.54461046]
[1741486784818,0.31158867,590.67,588.91,4.54461046]
[1741486785014,0.33860427,590.66,588.91,4.54461046]
[1741486785419,0.31158867,590.65,588.91,4.54461046]
[1741486785612,0.33861573,590.64,588.91,4.54461046]
[1741486785814,0.31158867,590.63,588.91,4.54461046]
[1741486786219,0.33861573,590.64,588.91,4.54461046]
[1741486786917,0.29508405,590.63,588.91,4.54461046]
[1741486789725,0.33861573,590.64,588.91,4.54461046]
[1741486789918,0.29510282,590.62,588.91,4.54461046]
[1741486790124,0.31158294,590.61,588.91,4.54461046]
[1741486790324,0.31158294,590.6,588.91,4.54461046]
[1741486790525,0.31158294,590.59,588.91,4.54461046]
[1741486790724,0.31158294,590.58,588.91,4.54461046]
[1741486791025,0.31158294,590.57,588.91,4.54461046]
[1741486791218,0.31158294,590.56,588.91,4.54461046]
[1741486791419,0.31158294,590.55,588.91,4.54461046]
[1741486791624,0.31158294,590.54,588.91,4.54461046]
[1741486791925,0.29510282,590.62,588.91,4.54461046]
[1741486792124,0.31159025,590.61,588.91,4.54461046]
[1741486792319,0.31159025,590.6,588.91,4.54461046]
[1741486792624,0.31159025,590.59,588.91,4.54461046]
[1741486792827,0.31159025,590.58,588.91,4.54461046]
[1741486793025,0.29511033,590.59,588.91,4.54461046]
[1741486793225,0.31159025,590.58,588.91,4.54461046]
[1741486793818,0.31159275,590.57,588.91,4.54461046]
[1741486794023,0.31159275,590.58,588.91,4.54461046]
[1741486794225,0.31159275,590.57,588.91,4.54461046]
[1741486794421,0.31159275,590.56,588.91,4.54461046]
[1741486794626,0.31159275,590.55,588.91,4.54461046]
[1741486794825,0.31159275,590.54,588.91,4.54461046]
[1741486795023,0.31159275,590.53,588.91,4.54461046]
[1741486795220,0.31159275,590.58,588.91,4.54461046]
[1741486795425,0.31159275,590.57,588.91,4.54461046]
[1741486795927,0.31159275,590.56,588.91,4.54461046]
[1741486796127,0.31159275,590.58,588.91,4.54461046]
[1741486796325,0.31159275,590.57,588.91,4.54461046]
[1741486796627,0.31159275,590.56,588.91,4.54461046]
[1741486797032,0.31159275,590.55,588.91,4.54461046]
[1741486797222,0.31159275,590.58,588.91,4.54461046]
[1741486797428,0.31157897,590.57,588.91,4.54461046]
[1741486797625,0.31157897,590.56,588.91,4.54461046]
[1741486797929,0.31157897,590.55,588.91,4.54461046]
[1741486798126,0.31157897,590.58,588.91,4.54461046]
[1741486798321,0.31157897,590.57,588.91,4.54461046]
[1741486798526,0.29511033,590.59,588.91,4.54461046]
[1741486798527,0.31157897,590.56,588.91,4.54461046]
[1741486798727,0.31157897,590.55,588.91,4.54461046]
[1741486798928,0.31157897,590.54,588.91,4.54461046]
[1741486799120,0.31157897,590.53,588.91,4.54461046]
[1741486799321,0.33861573,590.64,588.91,4.54461046]
[1741486799522,0.31157185,590.63,588.91,4.54461046]
[1741486799927,0.29510782,590.62,588.91,4.54461046]
[1741486800125,0.31157185,590.61,588.91,4.54461046]
[1741486801531,0.31157185,590.6,588.91,4.54461046]
[1741486801725,0.29511033,590.6,588.91,4.54461046]
[1741486801930,0.31157185,590.59,588.91,4.54461046]
[1741486807333,0.33865014,590.58,588.91,4.54461046]
[1741486807531,0.31157185,590.57,588.91,4.54461046]
[1741486807732,0.3386616,590.56,588.91,4.54461046]
[1741486808032,0.31164907,590.55,588.91,4.54461046]
[1741486808231,0.33867307,590.54,588.91,4.54461046]
[1741486808431,0.31164907,590.53,588.91,4.54461046]
[1741486808732,0.33867881,590.53,588.91,4.54461046]
[1741486808929,0.31166635,590.52,588.91,4.54461046]
[1741486809934,0.65035089,590.52,588.91,4.54461046]
[1741486810229,0.31166635,590.51,588.91,4.54461046]
[1741486810433,0.33869602,590.5,588.91,4.54461046]
[1741486810635,0.31166635,590.49,588.91,4.54461046]
[1741486810833,0.33870749,590.48,588.91,4.54461046]
[1741486811036,0.31166635,590.47,588.91,4.54461046]
[1741486812028,0.29517791,590.46,588.91,4.54461046]
[1741486812234,0.31166635,590.45,588.91,4.54461046]
[1741486812838,0.33873043,590.44,588.91,4.54461046]
[1741486813032,0.31166635,590.43,588.91,4.54461046]
[1741486813235,0.33874191,590.42,588.91,4.54461046]
[1741486813440,0.31166635,590.41,588.91,4.54461046]
[1741486815739,0.31169306,590.4,588.91,4.54461046]
[1741486815938,0.31169306,590.41,588.91,4.54461046]
[1741486816139,0.33874191,590.42,588.91,4.54461046]
[1741486816140,0.31169306,590.4,588.91,4.54461046]
[1741486816338,0.31169306,590.41,588.91,4.54461046]
[1741486816539,0.31169306,590.39,588.91,4.54461046]
[1741486816741,0.31169306,590.38,588.91,4.54461046]
[1741486816940,0.31169306,590.37,588.91,4.54461046]
[1741486817241,0.31169306,590.36,588.91,4.54461046]
[1741486817437,0.31169306,590.41,588.91,4.54461046]
[1741486817642,0.31169306,590.4,588.91,4.54461046]
[1741486817941,0.31169306,590.41,588.91,4.54461046]
[1741486818142,0.31169306,590.4,588.91,4.54461046]
[1741486818343,0.31169306,590.39,588.91,4.54461046]
[1741486818543,0.31169306,590.38,588.91,4.54461046]
[1741486818742,0.31169306,590.41,588.91,4.54461046]
[1741486819043,0.31169306,590.4,588.91,4.54461046]
[1741486819243,0.31170059,590.39,588.91,4.54461046]
[1741486819542,0.31170059,590.41,588.91,4.54461046]
[1741486819742,0.31170059,590.38,588.91,4.54461046]
[1741486820042,0.31170059,590.41,588.91,4.54461046]
[1741486820839,0.29519043,590.4,588.91,4.54461046]
[1741486821045,0.31170059,590.39,588.91,4.54461046]
[1741486822848,0.33874191,590.42,588.91,4.54461046]
[1741486822849,0.31170059,590.41,588.91,4.54461046]
[1741486823046,0.31169764,590.4,588.91,4.54461046]
[1741486823247,0.31169764,590.41,588.91,4.54461046]
[1741486823547,0.31169764,590.4,588.91,4.54461046]
[1741486823847,0.31169764,590.39,588.91,4.54461046]
[1741486824746,0.31170176,590.38,588.91,4.54461046]
[1741486824946,0.31170176,590.39,588.91,4.54461046]
[1741486825147,0.31170176,590.37,588.91,4.54461046]
[1741486825343,0.31170176,590.36,588.91,4.54461046]
[1741486825649,0.31170176,590.35,588.91,4.54461046]
[1741486825844,0.31170176,590.41,588.91,4.54461046]
[1741486826045,0.29519294,590.35,588.91,4.54461046]
[1741486826243,0.31170176,590.34,588.91,4.54461046]
[1741486828544,0.31170228,590.33,588.91,4.54461046]
[1741486828742,0.31170228,590.34,588.91,4.54461046]
[1741486829749,0.29519294,590.35,588.91,4.54461046]
[1741486831651,0.33874191,590.42,588.91,4.54461046]
[1741486832052,0.29516039,590.34,588.91,4.54461046]
[1741486832347,0.33874191,590.42,588.91,4.54461046]
[1741486833750,0.29510032,590.41,588.91,4.54461046]
[1741486834646,0.33874191,590.42,588.91,4.54461046]
[1741486835050,0.29515037,590.4,588.91,4.54461046]
[1741486837854,0.31162167,590.39,588.91,4.54461046]
[1741486838055,0.31162167,590.41,588.91,4.54461046]
[1741486838949,0.29516039,590.4,588.91,4.54461046]
[1741486839154,0.31162167,590.39,588.91,4.54461046]
[1741486840949,0.31162167,590.41,588.91,4.54461046]
[1741486841150,0.29517791,590.38,588.91,4.54461046]
[1741486841550,0.3116706,590.37,588.91,4.54461046]
[1741486843251,0.29517791,590.38,588.91,4.54461046]
[1741486843455,0.31166937,590.37,588.91,4.54461046]
[1741486846855,0.29518793,590.36,588.91,4.54461046]
[1741486847354,0.3116922,590.35,588.91,4.54461046]
[1741486848953,0.65047427,590.35,588.91,4.54461046]
[1741486849157,0.3116922,590.34,588.91,4.54461046]
[1741486850755,0.31170545,590.33,588.91,4.54461046]
[1741486850953,0.31170545,590.32,588.91,4.54461046]
[1741486852963,0.29521923,590.31,588.91,4.54461046]
[1741486853360,0.31170545,590.3,588.91,4.54461046]
[1741486855866,0.60692718,590.29,588.91,4.54461046]
[1741486856065,0.31170545,590.28,588.91,4.54461046]
[1741486858762,0.33878207,590.35,588.91,4.54461046]
[1741486858967,0.29522424,590.27,588.91,4.54461046]
[1741486859167,0.31171255,590.26,588.91,4.54461046]
[1741486859569,0.31171255,590.34,588.91,4.54461046]
[1741486859768,0.31171255,590.33,588.91,4.54461046]
[1741486859968,0.31171218,590.32,588.91,4.54461046]
[1741486860170,0.29521673,590.33,588.91,4.54461046]
[1741486860371,0.31171218,590.32,588.91,4.54461046]
[1741486861970,0.60693141,590.31,588.91,4.54461046]
[1741486862174,0.31171218,590.3,588.91,4.54461046]
[1741486864876,0.29523175,590.29,588.91,4.54461046]
[1741486865084,0.31171218,590.28,588.91,4.54461046]
[1741486865480,0.65053443,590.28,588.91,4.54461046]
[1741486865680,0.31171218,590.27,588.91,4.54461046]
[1741486868983,0.29524553,590.26,588.91,4.54461046]
[1741486869181,0.63407926,590.26,588.91,4.54461046]
[1741486869382,0.31171218,590.25,588.91,4.54461046]
[1741486869685,0.33884521,590.24,588.91,4.54461046]
[1741486870284,0.31186254,590.23,588.91,4.54461046]
[1741486870584,0.33885669,590.22,588.91,4.54461046]
[1741486870785,0.31186254,590.21,588.91,4.54461046]
[1741486870982,0.33886818,590.2,588.91,4.54461046]
[1741486871183,0.31186254,590.19,588.91,4.54461046]
[1741486871384,0.33887966,590.18,588.91,4.54461046]
[1741486871886,0.60716945,590.17,588.91,4.54461046]
[1741486872084,0.31186254,590.16,588.91,4.54461046]
[1741486872484,0.33889689,590.15,588.91,4.54461046]
[1741486873286,0.31184534,590.14,588.91,4.54461046]
[1741486873688,0.33890837,590.13,588.91,4.54461046]
[1741486874589,0.31179383,590.12,588.91,4.54461046]
[1741486874882,0.60699553,590.12,588.91,4.54461046]
[1741486875187,0.2952017,590.12,588.91,4.54461046]
[1741486876687,0.33890837,590.13,588.91,4.54461046]
[1741486877891,0.2952042,590.12,588.91,4.54461046]
[1741486879791,0.33890837,590.13,588.91,4.54461046]
[1741486880589,0.31177017,590.12,588.91,4.54461046]
[1741486880989,0.60696561,590.12,588.91,4.54461046]
[1741486881190,0.31177017,590.11,588.91,4.54461046]
[1741486882991,0.31177017,590.12,588.91,4.54461046]
[1741486883186,0.31177017,590.1,588.91,4.54461046]
[1741486883386,0.31177017,590.09,588.91,4.54461046]
[1741486883589,0.31177017,590.12,588.91,4.54461046]
[1741486883790,0.29528185,590.08,588.91,4.54461046]
[1741486883990,0.31177017,590.07,588.91,4.54461046]
[1741486886189,0.31177017,590.06,588.91,4.54461046]
[1741486886394,0.31177017,590.12,588.91,4.54461046]
[1741486886593,0.31177017,590.11,588.91,4.54461046]
[1741486886897,0.31181004,590.1,588.91,4.54461046]
[1741486888991,0.31181004,590.12,588.91,4.54461046]
[1741486889197,0.31181004,590.11,588.91,4.54461046]
[1741486889391,0.31181004,590.12,588.91,4.54461046]
[1741486889596,0.33890837,590.13,588.91,4.54461046]
[1741486889597,0.31181004,590.11,588.91,4.54461046]
[1741486889797,0.31181004,590.12,588.91,4.54461046]
[1741486890097,0.60710192,590.11,588.91,4.54461046]
[1741486890297,0.31181004,590.1,588.91,4.54461046]
[1741486891000,0.65073564,590.1,588.91,4.54461046]
[1741486891397,0.31181004,590.09,588.91,4.54461046]
[1741486892392,0.33893134,590.09,588.91,4.54461046]
[1741486892595,0.3118465,590.08,588.91,4.54461046]
[1741486892895,0.60714715,590.08,588.91,4.54461046]
[1741486893097,0.3118465,590.07,588.91,4.54461046]
[1741486895292,0.29530065,590.08,588.91,4.54461046]
[1741486895497,0.31183011,590.07,588.91,4.54461046]
[1741486897998,0.31183011,590.06,588.91,4.54461046]
[1741486898301,0.31183011,590.05,588.91,4.54461046]
[1741486901001,0.29528687,590.06,588.91,4.54461046]
[1741486906801,1.2617338,590.7,588.91,4.54461046]
[1741486907004,0.3385928,590.68,588.91,4.54461046]
[1741486907206,0.31165806,590.67,588.91,4.54461046]
[1741486907407,0.33861,590.65,588.91,4.54461046]
[1741486907607,0.31165806,590.64,588.91,4.54461046]
[1741486907808,0.33862147,590.63,588.91,4.54461046]
[1741486908005,0.31164097,590.62,588.91,4.54461046]
[1741486908205,0.33863293,590.61,588.91,4.54461046]
[1741486908407,0.31164097,590.6,588.91,4.54461046]
[1741486908609,0.3386444,590.59,588.91,4.54461046]
[1741486908800,0.31164097,590.58,588.91,4.54461046]
[1741486909005,0.33865587,590.57,588.91,4.54461046]
[1741486909204,0.31164097,590.56,588.91,4.54461046]
[1741486909407,0.33866734,590.55,588.91,4.54461046]
[1741486909605,0.31164097,590.54,588.91,4.54461046]
[1741486909804,0.33867881,590.53,588.91,4.54461046]
[1741486910110,0.31164097,590.52,588.91,4.54461046]
[1741486910306,0.33869028,590.51,588.91,4.54461046]
[1741486910501,0.31164097,590.5,588.91,4.54461046]
[1741486910706,0.33870175,590.49,588.91,4.54461046]
[1741486910910,0.31163279,590.48,588.91,4.54461046]
[1741486911102,0.65034028,590.48,588.91,4.54461046]
[1741486911305,0.31163279,590.47,588.91,4.54461046]
[1741486911706,0.33871896,590.46,588.91,4.54461046]
[1741486911902,0.31163279,590.45,588.91,4.54461046]
[1741486912106,0.65035749,590.45,588.91,4.54461046]
[1741486912307,0.31163279,590.44,588.91,4.54461046]
[1741486913404,0.3387247,590.45,588.91,4.54461046]
[1741486913610,0.31168292,590.44,588.91,4.54461046]
[1741486914010,0.60682453,590.44,588.91,4.54461046]
[1741486914308,0.31168292,590.43,588.91,4.54461046]
[1741486916008,0.31168292,590.44,588.91,4.54461046]
[1741486916204,0.31168292,590.43,588.91,4.54461046]
[1741486916404,0.31168292,590.44,588.91,4.54461046]
[1741486916608,0.31168292,590.43,588.91,4.54461046]
[1741486916803,0.31168292,590.42,588.91,4.54461046]
[1741486917011,0.65043056,590.41,588.91,4.54461046]
[1741486917209,0.31168292,590.4,588.91,4.54461046]
[1741486917410,0.6504363,590.4,588.91,4.54461046]
[1741486917610,0.31168292,590.39,588.91,4.54461046]
[1741486918208,0.33876486,590.38,588.91,4.54461046]
[1741486918408,0.31168292,590.37,588.91,4.54461046]
[1741486918613,0.33877633,590.36,588.91,4.54461046]
[1741486918813,0.31168292,590.35,588.91,4.54461046]
[1741486919914,0.29520796,590.34,588.91,4.54461046]
[1741486920115,0.31168292,590.33,588.91,4.54461046]
[1741486921418,0.31170835,590.32,588.91,4.54461046]
[1741486921616,0.31170835,590.31,588.91,4.54461046]
[1741486921815,0.31170835,590.35,588.91,4.54461046]
[1741486922116,0.31170835,590.34,588.91,4.54461046]
[1741486922314,0.31170835,590.35,588.91,4.54461046]
[1741486922811,0.29520796,590.34,588.91,4.54461046]
[1741486923014,0.31170835,590.33,588.91,4.54461046]
[1741486923217,0.31171451,590.32,588.91,4.54461046]
[1741486923612,0.31171451,590.31,588.91,4.54461046]
[1741486923814,0.31171451,590.33,588.91,4.54461046]
[1741486924016,0.31171451,590.32,588.91,4.54461046]
[1741486924210,0.31171451,590.33,588.91,4.54461046]
[1741486924915,0.31171451,590.32,588.91,4.54461046]
[1741486925111,0.31171451,590.31,588.91,4.54461046]
[1741486925416,0.31171451,590.3,588.91,4.54461046]
[1741486925918,0.6069375,590.29,588.91,4.54461046]
[1741486926118,0.31171451,590.28,588.91,4.54461046]
[1741486926417,0.33882799,590.27,588.91,4.54461046]
[1741486926618,0.31171451,590.26,588.91,4.54461046]
[1741486926820,0.31174359,590.25,588.91,4.54461046]
[1741486927113,0.31174359,590.24,588.91,4.54461046]
[1741486927318,0.31174359,590.23,588.91,4.54461046]
[1741486927518,0.31174359,590.22,588.91,4.54461046]
[1741486927818,0.31174359,590.21,588.91,4.54461046]
[1741486928013,0.31174359,590.2,588.91,4.54461046]
[1741486928519,0.29524678,590.21,588.91,4.54461046]
[1741486928713,0.31174192,590.2,588.91,4.54461046]
[1741486930214,0.31171752,590.19,588.91,4.54461046]
[1741486930517,0.31171752,590.18,588.91,4.54461046]
[1741486930717,0.31171752,590.2,588.91,4.54461046]
[1741486936119,0.31172045,590.19,588.91,4.54461046]
[1741486936324,0.31172045,590.2,588.91,4.54461046]
[1741486936624,0.31172045,590.19,588.91,4.54461046]
[1741486936823,0.31172045,590.2,588.91,4.54461046]
[1741486937021,0.60695972,590.19,588.91,4.54461046]
[1741486937221,0.31172045,590.18,588.91,4.54461046]
[1741486937822,0.29523927,590.19,588.91,4.54461046]
[1741486938022,0.31171715,590.18,588.91,4.54461046]
[1741486939521,0.29523927,590.19,588.91,4.54461046]
[1741486939721,0.31172056,590.18,588.91,4.54461046]
[1741486939920,0.31172056,590.26,588.91,4.54461046]
[1741486940125,0.29523175,590.18,588.91,4.54461046]
[1741486940426,0.31172056,590.17,588.91,4.54461046]
[1741486940626,0.31172056,590.26,588.91,4.54461046]
[1741486940825,0.33882799,590.27,588.91,4.54461046]
[1741486940826,0.31172056,590.25,588.91,4.54461046]
[1741486941026,0.31172056,590.26,588.91,4.54461046]
[1741486941228,0.60695231,590.25,588.91,4.54461046]
[1741486941427,0.31172056,590.24,588.91,4.54461046]
[1741486942925,0.31172056,590.26,588.91,4.54461046]
[1741486943226,0.29523426,590.23,588.91,4.54461046]
[1741486943423,0.31172227,590.22,588.91,4.54461046]
[1741486948829,0.31172227,590.21,588.91,4.54461046]
[1741486949031,0.29522674,590.21,588.91,4.54461046]
[1741486949232,0.31172227,590.2,588.91,4.54461046]
[1741486952133,0.31172227,590.19,588.91,4.54461046]
[1741486952329,1.2617338,590.25,588.91,4.54461046]
[1741486952527,0.31172649,590.24,588.91,4.54461046]
[1741486953130,0.29522925,590.23,588.91,4.54461046]
[1741486953333,0.31172649,590.22,588.91,4.54461046]
[1741486953534,0.29522925,590.23,588.91,4.54461046]
[1741486954732,1.2617338,590.25,588.91,4.54461046]
[1741486954938,0.29522925,590.22,588.91,4.54461046]
[1741486957735,0.33882799,590.27,588.91,4.54461046]
[1741486959037,0.29514286,590.26,588.91,4.54461046]
[1741486960744,0.33882799,590.27,588.91,4.54461046]
[1741486961948,0.29514537,590.26,588.91,4.54461046]
[1741486963846,0.33882799,590.27,588.91,4.54461046]
[1741486964045,0.31169651,590.26,588.91,4.54461046]
[1741486964246,0.33882799,590.27,588.91,4.54461046]
[1741486964946,0.29516164,590.26,588.91,4.54461046]
[1741486965341,0.31168909,590.25,588.91,4.54461046]
[1741486966949,0.31168909,590.26,588.91,4.54461046]
[1741486967146,0.31170322,590.25,588.91,4.54461046]
[1741486967348,0.31170322,590.26,588.91,4.54461046]
[1741486967848,0.29522424,590.25,588.91,4.54461046]
[1741486968249,0.31170351,590.24,588.91,4.54461046]
[1741486969047,0.29522424,590.25,588.91,4.54461046]
[1741486969251,0.31171131,590.24,588.91,4.54461046]
[1741486970051,0.31171131,590.26,588.91,4.54461046]
[1741486970250,0.31171131,590.25,588.91,4.54461046]
[1741486970557,0.31171131,590.24,588.91,4.54461046]
[1741486970755,0.31171131,590.26,588.91,4.54461046]
[1741486971055,0.29523426,590.23,588.91,4.54461046]
[1741486971250,0.31171131,590.22,588.91,4.54461046]
[1741486972553,0.29523426,590.23,588.91,4.54461046]
[1741486972757,0.31174323,590.22,588.91,4.54461046]